[Event "4th Tata Steel India Blitz Open 2022"]
[Site "Kolkota"]
[Date "2022.12.04"]
[Round "12.1"]
[White "Nihal Sarin"]
[Black "Vidit, Santosh Gujrathi"]
[Result "1-0"]
[ECO "A17"]
[WhiteElo "2670"]
[BlackElo "2724"]
[Annotator "TA"]
[PlyCount "71"]
[EventDate "2022.11.29"]
[EventType "tourn"]
[EventCountry "IND"]
[SourceTitle "playchess.com"]
[Source "ChessBase"]
[SourceQuality "1"]
[TimeControl "180+2"]

{[%evp 9,70,1,3,0,3,0,5,0,15,0,0,0,26,29,41,21,39,8,14,15,14,-14,-17,-6,0,0,7,-13,-14,-25,-2,-28,-18,-28,0,0,30,13,14,26,20,14,24,18,72,67,109,92,264,263,425,385,668,664,635,614,1122,1103,1095,1069,29992,29993,29999]} 1. Nf3 {[%emt 0:00:01]} d5 {[%emt 0:00:01]} 2. e3 {[%emt 0:00:01]} Nf6 {[%emt 0:00:03]} 3. c4 {[%emt 0:00:03]} e6 {[%emt 0:00:01]} 4. Nc3 {[%emt 0:00:03]} Bd6 {[%emt 0:00:06]} 5. b3 {[%emt 0:00:04]} O-O {[%emt 0:00:02]} 6. Bb2 {[%emt 0:00:01] A17: English Opening: 1...Nf6 with ...Bb4.} Re8 {[%emt 0:00:02] is cutting edge theory.} 7. d4 {[%emt 0:00:04]} b6 {[%emt 0:00:03]} 8. Rc1 {[%emt 0:00:02] The position is equal.} a6 {[%emt 0:00:04]} 9. cxd5 {[%emt 0:00:09]} exd5 {[%emt 0:00:01] [#]} 10. g3 $146 {[%emt 0:00:02]} ({Predecessor:} 10. Bd3 Nbd7 11. O-O Bb7 12. Re1 Ne4 13. Ne2 Qf6 14. Ng3 Qe6 15. Qc2 f5 16. Ne5 {0-1 (43) Grandelius,N (2657)-Sarana,A (2668) Chess.com INT 2022}) 10... Bg4 {[%emt 0:00:12]} 11. Bg2 {[%emt 0:00:19]} Nbd7 {[%emt 0:00:02]} 12. O-O {[%emt 0:00:03]} c6 {[%emt 0:00:14]} 13. Ne2 {[%emt 0:00:03]} (13. h3 $5 {[%cal Rh3g4]} Bf5 14. g4 $14) 13... Rc8 {[%emt 0:00:02]} 14. h3 {[%emt 0:00:14]} Bf5 {[%emt 0:00:03]} 15. Nf4 {[%emt 0:00:07]} (15. g4 $5 {[%cal Rg4f5]} Bg6 16. Nf4 $11) 15... h6 {[%emt 0:00:03]} 16. Nd3 {[%emt 0:00:06]} Be4 {[%emt 0:00:16]} 17. Qe2 {[%emt 0:00:17]} c5 {[%emt 0:00:13]} 18. dxc5 {[%emt 0:00:07]} (18. Nfe5 {simplifies} Nxe5 19. dxe5 Bxd3 20. Qxd3 Bxe5 21. Bxe5 Rxe5 22. Qxa6 Ra8 23. Qe2) 18... bxc5 {[%emt 0:00:01]} 19. Rfd1 {[%emt 0:00:02]} Qb6 {[%emt 0:00:13]} 20. Nd2 {[%emt 0:00:54]} Bxg2 {[%emt 0:00:13]} 21. Kxg2 {[%emt 0:00:01]} Qb7 {[%emt 0:00:16]} (21... a5 {simplifies} 22. Bxf6 Nxf6 23. Qf3 a4) 22. Qf3 {[%emt 0:00:07]} Ne4 {[%emt 0:00:02] [#] Threatens to win with ...Ng5.} 23. Kg1 {[%emt 0:00:16]} (23. Nf4 {simplifies} Bxf4 24. gxf4 Nef6 25. Kh2) 23... a5 {[%emt 0:00:18]} 24. Nxe4 {[%emt 0:00:04]} (24. Nf4 {keeps more tension.} Bxf4 25. gxf4 a4 26. Nxe4 Rxe4 27. Qg3) 24... Rxe4 {[%emt 0:00:07]} 25. Nf4 {[%emt 0:00:17]} Bxf4 {[%emt 0:00:16]} 26. gxf4 $40 {[%emt 0:00:01][%mdl 128] White has some attack.} f6 {[%emt 0:00:34]} (26... a4 $11) 27. Qg4 $16 {[%emt 0:00:08]} Rce8 {[%emt 0:00:11]} 28. Qf5 {[%emt 0:00:03]} Nb6 {[%emt 0:00:10] Loses the game.} (28... d4 $16) 29. Rxc5 $18 {[%emt 0:00:02]} Kh8 $2 {[%emt 0:00:06]} (29... a4 {keeps fighting.} 30. Bd4 axb3 31. axb3 R4e7) 30. Bd4 {[%emt 0:00:03]} ({Much less strong is} 30. Rxa5 Nc4 $18) 30... Qa6 $2 {[%emt 0:00:03]} (30... Nc8 31. Qh5 R4e6 32. Rxa5 Rd8) 31. Rdc1 {[%emt 0:00:06]} Rg8 {[%emt 0:00:03]} 32. Rc6 {[%emt 0:00:04] [#] Against a4. Bxf6 is the strong threat.} Rxd4 {[%emt 0:00:02]} 33. exd4 {[%emt 0:00:01]} Qb5 {[%emt 0:00:00]} 34. Qe6 {[%emt 0:00:01]} Na8 {[%emt 0:00:03]} 35. Rc8 {[%emt 0:00:01][%csl Gc8][%cal Re6g8]} Qd3 {[%emt 0:00:02]} 36. Qxg8# {[%emt 0:00:02] Weighted Error Value: White=0.07 (flawless) /Black=0.60} 1-0

[Event "4th Tata Steel India Blitz Open 2022"]
[Site "Kolkota"]
[Date "2022.12.04"]
[Round "12.2"]
[White "Mamedyarov, Shakhriyar"]
[Black "So, Wesley"]
[Result "0-1"]
[ECO "D78"]
[WhiteElo "2741"]
[BlackElo "2760"]
[Annotator "TA"]
[PlyCount "97"]
[EventDate "2022.11.29"]
[EventType "tourn"]
[EventCountry "IND"]
[SourceTitle "playchess.com"]
[Source "ChessBase"]
[SourceQuality "1"]
[TimeControl "180+2"]

{[%evp 14,97,12,14,11,18,35,9,13,1,8,18,29,13,15,15,17,22,32,37,50,15,28,27,45,33,248,261,262,254,563,538,572,40,172,96,98,106,151,152,149,0,0,0,0,-65,7,-48,7,0,0,0,26,27,27,24,31,0,0,0,0,0,0,-38,0,0,0,0,0,-150,-157,-156,-162,-158,-97,-102,-100,-209,-213,-368,-368,-549,-549,-845,-824,-572]} 1. d4 {[%emt 0:00:00]} Nf6 {[%emt 0:00:01]} 2. c4 {[%emt 0:00:01]} g6 {[%emt 0:00:00]} 3. g3 {[%emt 0:00:05]} c6 {[%emt 0:00:02]} 4. Bg2 {[%emt 0:00:03]} d5 {[%emt 0:00:01]} 5. Qa4 {[%emt 0:00:06]} dxc4 {[%emt 0:00:18]} 6. Qxc4 {[%emt 0:00:02]} Bg7 {[%emt 0:00:00]} 7. Nf3 {[%emt 0:00:01]} O-O {[%emt 0:00:02]} 8. O-O {[%emt 0:00:02]} Bf5 {[%emt 0:00:09] D78: Fianchetto Grünfeld: 6 0-0 c6.} 9. Nc3 {[%emt 0:00:10]} Ne4 {[%emt 0:00:08]} 10. e3 {[%emt 0:00:45]} Nd7 {[%emt 0:00:11] The position is equal.} 11. Rd1 {[%emt 0:00:06]} Nxc3 {[%emt 0:00:19]} 12. bxc3 {[%emt 0:00:01] [#]} Be4 $146 {[%emt 0:00:02]} ({Predecessor:} 12... Qc7 13. a4 e5 14. a5 e4 15. Nd2 Nf6 16. h3 h5 17. Bb2 Rfe8 18. Qf1 Nh7 {1-0 (94) Banusz,T (2620)-Can,E (2600) Chess.com INT 2020}) 13. Ba3 {[%emt 0:00:22]} Nb6 {[%emt 0:00:28]} 14. Qe2 {[%emt 0:00:12]} Re8 {[%emt 0:00:17]} 15. c4 {[%emt 0:00:04] Inhibits Qd5.} Nd7 {[%emt 0:00:02]} 16. Bh3 {[%emt 0:00:04]} c5 {[%emt 0:00:18]} 17. Ng5 {[%emt 0:00:27]} (17. Bxc5 Nxc5 18. dxc5 Qc7 $11) 17... Bc6 {[%emt 0:00:00]} 18. Rab1 {[%emt 0:00:03]} (18. Bxc5 Nxc5 19. dxc5 Qa5 $17) 18... cxd4 {[%emt 0:00:12]} 19. exd4 {[%emt 0:00:01][%cal Oh3e6] Be6! is the strong threat.} Qa5 $2 {[%emt 0:00:05]} ({Black should try} 19... e6 $14 20. Ne4 Nf6) 20. d5 $1 $18 {[%emt 0:00:13]} (20. Bxe7 $2 Qxg5 21. Bxg5 Rxe2 $19) 20... Ba4 {[%emt 0:00:01]} 21. Re1 {[%emt 0:00:25]} Nc5 {[%emt 0:00:53] Prevents Be6.} (21... Bf6 {is tougher.}) 22. Qf3 {[%emt 0:00:12]} Bf6 {[%emt 0:00:02] [#]} 23. Bxc5 $2 {[%emt 0:00:09]} (23. Rxe7 $1 $18 {[%mdl 512]} Qc3 24. Rxe8+ (24. Rxf7 Qxf3 25. Nxf3 Kxf7 $14) 24... Rxe8 25. Qxc3 Bxc3 26. Bxc5) 23... Bxg5 {[%emt 0:00:02]} (23... Qxc5 $14 24. Qf4 Bxg5 25. Qxg5 Qxc4) 24. Bd4 {[%emt 0:00:04]} (24. Qa3 $18) 24... Bc2 $16 {[%emt 0:00:03]} 25. Ra1 {[%emt 0:00:07]} (25. Bc3 {seems wilder.} Qa3 26. Rb2 Ba4 27. Rxb7 Bd2 28. Rexe7 Rxe7 29. Rxe7 Qxe7 30. Bxd2 Rb8 31. Qd3) 25... Bf6 {[%emt 0:00:06]} 26. Bxf6 {[%emt 0:00:03]} exf6 {[%emt 0:00:00]} 27. Rxe8+ {[%emt 0:00:02]} ({White should play} 27. Rec1 $16 Qd2 28. Qxf6) 27... Rxe8 $11 {[%emt 0:00:01]} 28. Bf1 {[%emt 0:00:03]} (28. Qxf6 $2 Re1+ 29. Bf1 (29. Rxe1 $2 Qxe1+ 30. Kg2 Be4+ $19) 29... Bd3 $19) 28... Kg7 {[%emt 0:00:04]} 29. d6 {[%emt 0:00:01]} (29. Rc1 $11 Bf5 30. Qd1) 29... Bf5 {[%emt 0:00:03] Black is more active.} (29... b6 $15) 30. Rd1 {[%emt 0:00:02]} (30. Qxb7 $11 Qe5 31. Rd1) 30... Qb6 {[%emt 0:00:06]} ({Better is} 30... b6 $15) 31. Qd5 {[%emt 0:00:02]} Be6 {[%emt 0:00:01] Inhibits c5.} 32. c5 {[%emt 0:00:01]} Qb4 {[%emt 0:00:04]} (32... Qa5 $5 {[%cal Re6d5]} 33. Qxb7 (33. d7 Rd8 $11) 33... Qxc5 $11) 33. Qd4 {[%emt 0:00:01]} Qxd4 {[%emt 0:00:01]} 34. Rxd4 {[%emt 0:00:01][%mdl 4096] Endgame Hoping for Bg2. KRB-KRB} Bd7 $1 {[%emt 0:00:03]} 35. h4 {[%emt 0:00:03]} Re1 {[%emt 0:00:02]} 36. f3 {[%emt 0:00:03]} Rc1 {[%emt 0:00:03]} 37. Rc4 {[%emt 0:00:03]} Ra1 {[%emt 0:00:01][%cal Od7b5]} 38. Rb4 {[%emt 0:00:02] Inhibits Bb5.} Bc6 {[%emt 0:00:02]} (38... Rxa2 $2 39. Rxb7 Bc6 40. Rc7 Bxf3 41. Bc4 Rg2+ 42. Kf1 $18) (38... Bh3 $5 {[%cal Ra1f1]} 39. Rxb7 Rxf1+ 40. Kh2 Be6 $15) 39. Rb2 {[%emt 0:00:02]} Rc1 {[%emt 0:00:02]} 40. Rd2 {[%emt 0:00:01] Strongly threatening d7.} Bd7 $1 {[%emt 0:00:00]} (40... Bxf3 $2 41. d7 $18) 41. Rd5 {[%emt 0:00:02]} (41. Rb2 $11) 41... Kf8 $1 $17 {[%emt 0:00:04]} 42. Kf2 {[%emt 0:00:01][%cal Oa2a4] [#]} Ke8 $1 {[%emt 0:00:01] Against a4} 43. Bd3 {[%emt 0:00:01] [#]} Bc6 {[%emt 0:00:00]} (43... Be6 $142 $1 {[%cal Re6d5]} 44. Rd4 (44. Bb5+ $2 Kd8 $19) 44... Rxc5) 44. Rd4 {[%emt 0:00:03]} Rxc5 {[%emt 0:00:01]} 45. Be4 {[%emt 0:00:01]} (45. Bc4 $17 {was worth a try.}) 45... Kd7 $19 {[%emt 0:00:02]} 46. Bd3 $2 {[%emt 0:00:03]} (46. Bxc6+ {is a better defense.} Rxc6 47. Ke3) 46... Rd5 {[%emt 0:00:01]} 47. Rxd5 {[%emt 0:00:02]} (47. Ke3 $142) 47... Bxd5 {[%emt 0:00:00]} 48. Ke3 {[%emt 0:00:01]} Bxa2 {[%emt 0:00:01]} 49. Kd4 {[%emt 0:00:03] Never resign too early!   Weighted Error Value: White=0.46/Black=0.28 (precise)} 0-1

[Event "4th Tata Steel India Blitz Open 2022"]
[Site "Kolkota"]
[Date "2022.12.04"]
[Round "12.3"]
[White "Nakamura, Hikaru"]
[Black "Abdusattorov, Nodirbek"]
[Result "1-0"]
[ECO "B44"]
[WhiteElo "2768"]
[BlackElo "2713"]
[Annotator "TA"]
[PlyCount "93"]
[EventDate "2022.11.29"]
[EventType "tourn"]
[EventCountry "IND"]
[SourceTitle "playchess.com"]
[Source "ChessBase"]
[SourceQuality "1"]
[TimeControl "180+2"]

{[%evp 12,93,10,8,8,8,37,57,31,38,43,15,39,41,37,34,44,52,56,36,42,32,37,25,50,39,50,58,51,43,45,52,122,107,101,96,109,109,113,113,132,134,177,179,179,178,193,168,175,142,173,167,171,139,172,174,187,151,161,151,187,127,126,126,154,136,122,140,173,101,100,79,245,0,0,-999,0,0,0,0,414,431,29997,29998]} 1. c4 {[%emt 0:00:01]} c5 {[%emt 0:00:01]} 2. Nf3 {[%emt 0:00:02]} Nc6 {[%emt 0:00:01]} 3. Nc3 {[%emt 0:00:02]} Nf6 {[%emt 0:00:01]} 4. d4 {[%emt 0:00:00]} cxd4 {[%emt 0:00:01]} 5. Nxd4 {[%emt 0:00:01]} e6 {[%emt 0:00:01]} 6. Nxc6 {[%emt 0:00:01]} bxc6 {[%emt 0:00:08]} 7. e4 {[%emt 0:00:01]} e5 {[%emt 0:00:02] B44: Sicilian: Taimanov: 5 Nb5.} 8. Qd3 $5 {[%emt 0:00:02][%mdl 4] [#] Exploring less charted territory.} Be7 $146 {[%emt 0:00:36]} ({Predecessor:} 8... Bc5 9. Be3 Qb6 10. Bxc5 Qxc5 11. Be2 O-O 12. O-O Rd8 13. Rfd1 Rb8 14. a3 Qe7 15. b4 {1-0 (40) Thybo,J (2559)-Bjerre,J (2611) Svendborg 2022}) 9. Be2 {[%emt 0:00:02]} O-O {[%emt 0:00:04] White is slightly better.} 10. O-O {[%emt 0:00:04]} d6 {[%emt 0:00:03]} 11. b4 {[%emt 0:00:31]} Be6 {[%emt 0:00:05]} 12. Rd1 {[%emt 0:00:10]} Qc7 {[%emt 0:00:03]} 13. Be3 {[%emt 0:00:04]} Rfd8 {[%emt 0:00:08]} 14. Rac1 {[%emt 0:00:10]} Qb7 {[%emt 0:00:16]} 15. a3 {[%emt 0:00:01]} Rac8 {[%emt 0:00:18]} 16. f3 {[%emt 0:00:16]} h6 {[%emt 0:00:04]} 17. Bf2 {[%emt 0:00:02]} Rc7 {[%emt 0:00:42]} 18. Bf1 {[%emt 0:00:11]} Rcd7 {[%emt 0:00:11]} 19. Qc2 {[%emt 0:00:23]} Rc8 {[%emt 0:00:16]} 20. Qa4 {[%emt 0:00:03]} Rb8 {[%emt 0:00:19]} 21. Rb1 {[%emt 0:00:05]} Rdd8 {[%emt 0:00:02]} ({Black should play} 21... Qc8 $14) 22. b5 {[%emt 0:00:19] White is more active.} (22. Bxa7 $2 Ra8 23. b5 Rxa7 $19) 22... c5 {[%emt 0:00:04]} 23. Qc2 {[%emt 0:00:03]} Rd7 {[%emt 0:00:03]} 24. a4 {[%emt 0:00:01]} Bd8 {[%emt 0:00:01]} 25. Be1 {[%emt 0:00:12]} Ba5 {[%emt 0:00:13]} 26. Nd5 {[%emt 0:00:03] Inhibits Qb6.} Bxe1 {[%emt 0:00:01]} 27. Nxf6+ {[%emt 0:00:02]} (27. Rxe1 $6 Bxd5 28. exd5 Qc7 $14) 27... gxf6 {[%emt 0:00:00]} 28. Rxe1 {[%emt 0:00:01]} Qc7 {[%emt 0:00:06]} 29. Qd2 {[%emt 0:00:03]} Kh7 {[%emt 0:00:01]} 30. a5 {[%emt 0:00:02]} Qd8 {[%emt 0:00:02]} 31. Bd3 {[%emt 0:00:03] And now f4 would win.} Qg8 {[%emt 0:00:06]} 32. g3 {[%emt 0:00:16]} Qg7 {[%emt 0:00:02]} 33. Kh1 {[%emt 0:00:02]} Kh8 {[%emt 0:00:02]} 34. Rb2 {[%emt 0:00:06]} Qg6 {[%emt 0:00:04]} 35. Reb1 {[%emt 0:00:02]} Qg7 {[%emt 0:00:01]} 36. b6 {[%emt 0:00:01]} (36. f4 $18 {Hoping for f5.} Bh3 37. b6 axb6 38. f5 (38. Rxb6 Ra8 $16) (38. axb6 Rdb7 $18)) 36... axb6 $16 {[%emt 0:00:01]} 37. Rxb6 {[%emt 0:00:01]} Ra8 {[%emt 0:00:02]} 38. Rb8+ {[%emt 0:00:03]} Rd8 {[%emt 0:00:02]} 39. Rxd8+ {[%emt 0:00:01]} Rxd8 {[%emt 0:00:00]} 40. a6 {[%emt 0:00:10]} (40. Bf1 $18) 40... Ra8 {[%emt 0:00:01]} 41. Rb6 {[%emt 0:00:02]} Bc8 $2 {[%emt 0:00:01]} (41... Qf8 $16 {was called for.}) 42. Qa5 $2 {[%emt 0:00:07]} (42. Rxd6 $6 Bxa6 43. Bf1 Bb7) (42. Bf1 $18) 42... Qg5 $11 {[%emt 0:00:01] [#] Threatens to win with ...Qe3.} 43. Bf1 $2 {[%emt 0:00:15][%mdl 8192]} ({Don't play} 43. Rxd6 Qc1+ 44. Kg2 Rb8 $17) (43. Kg2 $11 Qe3 44. Bf1 (44. Rxd6 Rxa6 45. Rxa6 Qxd3 $11)) 43... Qe3 $2 {[%emt 0:00:01]} (43... Qc1 $19 {[%cal Rc1f1]} 44. Kg2 {[#]} Bh3+ $1 {[%mdl 512]} 45. Kxh3 Qxf1+ 46. Kh4 Qg2) 44. Kg2 $36 {[%emt 0:00:02][%mdl 2048] White has some pressure.} Kg7 {[%emt 0:00:04]} 45. Rxd6 {[%emt 0:00:01] Black must now prevent a7.} f5 $2 {[%emt 0:00:04][%mdl 8192]} (45... Rb8 $11 {and Black stays safe.} 46. Rb6 Rxb6 47. Qxb6 Qd2+ 48. Kg1 Qe3+ 49. Kg2 Qd2+ 50. Kg1 Qe3+ 51. Kg2) 46. Qd8 $18 {[%emt 0:00:09] White wants to mate with Qf6+. Really sharp!} Rxa6 {[%emt 0:00:04]} (46... Qg5 $18 47. exf5 (47. a7 fxe4 48. Qxg5+ hxg5 $11) 47... Qxf5) 47. Qf6+ {[%emt 0:00:01] White used his chance.   Weighted Error Value: White=0.34/Black=0.54} 1-0

[Event "4th Tata Steel India Blitz Open 2022"]
[Site "Kolkota"]
[Date "2022.12.04"]
[Round "12.4"]
[White "Erigaisi Arjun"]
[Black "Gukesh D"]
[Result "1-0"]
[ECO "B06"]
[WhiteElo "2718"]
[BlackElo "2725"]
[Annotator "TA"]
[PlyCount "111"]
[EventDate "2022.11.29"]
[EventType "tourn"]
[EventCountry "IND"]
[SourceTitle "playchess.com"]
[Source "ChessBase"]
[SourceQuality "1"]
[TimeControl "180+2"]

{[%evp 9,111,41,47,16,25,22,23,14,50,47,71,7,11,0,0,-6,5,0,0,0,0,0,0,0,0,0,0,0,37,0,55,52,61,53,70,64,143,123,214,169,167,167,173,172,181,181,170,0,142,119,507,496,454,388,396,390,449,439,430,418,412,412,395,379,443,401,488,502,582,464,548,512,589,468,614,589,544,485,506,471,689,679,681,677,679,657,696,674,707,675,1139,1093,1247,1189,1178,1124,2220,2156,2096,1758,5218,1781,1446,1314]} 1. e4 {[%emt 0:00:01]} g6 {[%emt 0:00:08]} 2. d4 {[%emt 0:00:02]} Bg7 {[%emt 0:00:02]} 3. Nc3 {[%emt 0:00:02]} d6 {[%emt 0:00:01]} 4. Be3 {[%emt 0:00:01]} a6 {[%emt 0:00:01]} 5. Qd2 {[%emt 0:00:03]} b5 {[%emt 0:00:02]} 6. h4 {[%emt 0:00:02] B06: Modern Defence.} Nf6 {[%emt 0:00:03] Against h5} 7. f3 {[%emt 0:00:02]} h5 {[%emt 0:00:05]} 8. O-O-O {[%emt 0:00:06] White has an edge.} Nc6 {[%emt 0:00:02] 8...b4 is becoming the main line.} (8... b4 $5 {[%cal Rb4c3]} 9. Nce2 a5 $14) 9. Kb1 {[%emt 0:00:07]} b4 {[%emt 0:00:15] [#]} 10. Na4 $146 {[%emt 0:00:07]} (10. Nd5 $16) ({Predecessor:} 10. Nd5 Rb8 11. c4 e6 12. Nxf6+ Bxf6 13. d5 Ne5 14. Nh3 a5 15. Ng5 Qe7 16. c5 dxc5 {1-0 (35) Berg,E (2539)-Rothen,H (2280) Lidkoping 2013}) 10... Bd7 $11 {[%emt 0:00:08]} 11. b3 {[%emt 0:00:06]} a5 {[%emt 0:00:04]} 12. Ne2 {[%emt 0:00:16]} e5 {[%emt 0:00:07]} 13. Bg5 {[%emt 0:00:33]} Qb8 {[%emt 0:00:28]} 14. d5 {[%emt 0:00:04]} Na7 {[%emt 0:00:18]} 15. Nc1 {[%emt 0:00:06]} Nb5 {[%emt 0:00:11]} 16. Bxb5 {[%emt 0:00:05]} Bxb5 {[%emt 0:00:01]} 17. c4 {[%emt 0:00:18]} bxc3 {[%emt 0:00:36]} 18. Nxc3 {[%emt 0:00:02]} a4 {[%emt 0:00:11]} 19. b4 {[%emt 0:00:01]} a3 {[%emt 0:00:04]} (19... Bc4 $11) 20. Nxb5 $14 {[%emt 0:00:38]} Qxb5 {[%emt 0:00:02]} 21. Nd3 {[%emt 0:00:02]} Nd7 {[%emt 0:00:41]} 22. Rc1 {[%emt 0:00:03]} Qb7 {[%emt 0:00:03]} ({Better is} 22... Ra7 $14) 23. Qc3 $16 {[%emt 0:00:04]} O-O {[%emt 0:00:09]} (23... Ra7 $16) 24. Qxc7 {[%emt 0:00:06]} Qb5 {[%emt 0:00:01]} 25. Qc4 {[%emt 0:00:02]} Qb6 {[%emt 0:00:01]} 26. Qc6 {[%emt 0:00:20]} Qd4 {[%emt 0:00:02] [#]} 27. Qc3 {[%emt 0:00:01] Strongly threatening Qxd4. Active counter play!} Qb6 {[%emt 0:00:01]} 28. Qc6 {[%emt 0:00:17]} Qd4 $1 {[%emt 0:00:02]} 29. Rhd1 $36 {[%emt 0:00:02][%mdl 2048] Black is under strong pressure.} Nf6 {[%emt 0:00:08][%mdl 8192] Loses the game.} (29... Rfb8 $16 {is a better chance.} 30. Qc3 (30. Qxd7 Rxb4+ 31. Kc2 Rbb8 $16) 30... f5) 30. Rc4 $18 {[%emt 0:00:07]} (30. Qxd6 Rfc8 31. Rc6 (31. Bxf6 $2 Rxc1+ 32. Kxc1 Qc3+ 33. Kb1 Rc8 $19) (31. Rxc8+ Rxc8 32. Qa6 Rc3 $16) 31... Rxc6 32. Qxc6 Rb8 $18) 30... Qa7 {[%emt 0:00:01]} 31. Bxf6 {[%emt 0:00:03]} Bxf6 {[%emt 0:00:00]} 32. Qxd6 {[%emt 0:00:02]} Kg7 {[%emt 0:00:01]} 33. Rc7 {[%emt 0:00:06]} ({Inferior is} 33. Nxe5 Rfd8 34. Qc5 Bxe5 35. Qxa7 Rxa7 $17) 33... Qe3 {[%emt 0:00:01]} 34. Qc5 {[%emt 0:00:02]} (34. Nxe5 $2 {loses.} Qe2 35. Nd3 Qxd1+ 36. Nc1 Qd4 $19) 34... Qe2 {[%emt 0:00:02]} 35. Qc2 {[%emt 0:00:02]} Qe3 {[%emt 0:00:01]} 36. Qf2 {[%emt 0:00:05]} Qh6 {[%emt 0:00:02]} 37. Rc6 {[%emt 0:00:06]} Rfc8 {[%emt 0:00:02]} 38. Rdc1 {[%emt 0:00:02] White is clearly winning.} Rd8 {[%emt 0:00:01]} 39. R1c3 {[%emt 0:00:01]} Qh8 {[%emt 0:00:05]} 40. Kc2 {[%emt 0:00:01]} Qe8 {[%emt 0:00:01]} 41. g3 {[%emt 0:00:01]} Qe7 {[%emt 0:00:02]} 42. Qc5 {[%emt 0:00:02]} Qd7 {[%emt 0:00:02] [#]} 43. Rxf6 $1 {[%emt 0:00:04]} Kxf6 {[%emt 0:00:01]} 44. Qc6+ {[%emt 0:00:00]} ({Less strong is} 44. Qe3 Qa4+ 45. Kd2 Kg7 $18) 44... Qd6 {[%emt 0:00:03]} (44... Qxc6 $142 45. Rxc6+ Ke7 46. Nxe5 Rdb8 47. d6+ Kf6) 45. f4 {[%emt 0:00:03][%cal Bf3f4,Bf4e5,Be5e6][%mdl 32]} Kg7 {[%emt 0:00:03]} 46. Qxd6 {[%emt 0:00:02]} Rxd6 {[%emt 0:00:01]} 47. fxe5 {[%emt 0:00:02][%mdl 4096] Endgame KRR-KRN} Rd7 {[%emt 0:00:00]} 48. Kb3 {[%emt 0:00:01]} g5 {[%emt 0:00:02]} 49. hxg5 {[%emt 0:00:02]} Kg6 {[%emt 0:00:01]} 50. e6 {[%emt 0:00:02]} Re7 {[%emt 0:00:03]} 51. Ne5+ {[%emt 0:00:01]} Kxg5 {[%emt 0:00:01]} 52. Nxf7+ {[%emt 0:00:01]} Kg4 {[%emt 0:00:03]} 53. Ne5+ {[%emt 0:00:03]} Kg5 {[%emt 0:00:01]} 54. Rf3 {[%emt 0:00:01]} Rg8 {[%emt 0:00:05]} 55. b5 {[%emt 0:00:02]} (55. Rf5+ $142 Kh6 56. Nf7+ Kg7 57. Rg5+ Kf8 58. Rxg8+ Kxg8 59. d6 Rxe6 60. d7 Kxf7 61. d8=Q Rxe4 62. Qd5+ Re6 63. Qxh5+ Kf6 64. b5) 55... Rb7 {[%emt 0:00:04]} 56. Kc4 {[%emt 0:00:02] Weighted Error Value: White=0.21 (precise) /Black=0.46} 1-0

[Event "4th Tata Steel India Blitz Open 2022"]
[Site "Kolkota"]
[Date "2022.12.04"]
[Round "12.5"]
[White "Maghsoodloo, Parham"]
[Black "Rameshbabu, Praggnanandhaa"]
[Result "0-1"]
[ECO "A28"]
[WhiteElo "2720"]
[BlackElo "2678"]
[Annotator "TA"]
[PlyCount "43"]
[EventDate "2022.11.29"]
[EventType "tourn"]
[EventCountry "IND"]
[SourceTitle "playchess.com"]
[Source "ChessBase"]
[SourceQuality "1"]
[TimeControl "180+2"]

{[%evp 13,43,-7,0,-6,14,-4,18,3,46,33,39,22,39,32,39,39,43,12,13,-45,-41,-46,-28,-69,-40,-184,-184,-237,-224,-222,-237,-297]} 1. c4 {[%emt 0:00:01]} e5 {[%emt 0:00:02]} 2. Nc3 {[%emt 0:00:03]} Nf6 {[%emt 0:00:01]} 3. Nf3 {[%emt 0:00:01]} Nc6 {[%emt 0:00:01]} 4. e3 {[%emt 0:00:04]} Bb4 {[%emt 0:00:04]} 5. Qc2 {[%emt 0:00:02]} Bxc3 {[%emt 0:00:03]} 6. bxc3 {[%emt 0:00:02]} O-O {[%emt 0:00:03]} 7. Be2 {[%emt 0:00:17]} d6 {[%emt 0:00:18]} 8. e4 {[%emt 0:00:07] A28: English Opening: Four Knights Variation.} Ne8 $5 {[%emt 0:00:11][%mdl 4] An interesting side line.} 9. d4 {[%emt 0:00:06] [#]} h6 $146 {[%emt 0:00:19]} (9... Bg4 $5) ({Predecessor:} 9... Qe7 10. O-O Bg4 11. Be3 f5 12. exf5 Bxf5 13. Qb3 Na5 14. Qb5 b6 15. Qd5+ Kh8 16. Qxa8 c6 17. dxe5 dxe5 18. Qb8 Bg4 19. c5 bxc5 20. Rfe1 Nd6 21. Bg5 {1-0 (21) Sarakauskas,G (2425)-Weaving,R (2330) Daventry 2019}) 10. O-O {[%emt 0:00:25] The position is equal.} f5 {[%emt 0:00:04]} 11. dxe5 {[%emt 0:00:30]} dxe5 {[%emt 0:00:10]} 12. Ba3 {[%emt 0:00:02]} Rf7 {[%emt 0:00:01]} 13. Rad1 {[%emt 0:00:03]} Qf6 {[%emt 0:00:03]} 14. c5 {[%emt 0:00:25]} Rb8 {[%emt 0:00:24]} 15. Nd2 {[%emt 0:00:14]} Be6 {[%emt 0:00:37]} 16. Bc4 {[%emt 0:00:42]} ({White should play} 16. Bb5 $11) 16... Bxc4 $15 {[%emt 0:00:08]} 17. Nxc4 {[%emt 0:00:01]} Qe6 {[%emt 0:00:06] Prevents f4.} (17... f4 $5 {[%cal Rf4f3]}) 18. Ne3 {[%emt 0:00:04]} fxe4 {[%emt 0:00:01]} (18... f4 $5 {[%cal Rf4e3]} 19. Nf5 Nf6 $15) 19. c4 {[%emt 0:00:13] Now White is beyond hope.} (19. Nd5 $15) 19... Nd4 $19 {[%emt 0:00:10] Black is clearly better.} 20. Qd2 {[%emt 0:00:15]} (20. Qb2 $142) 20... Nf6 {[%emt 0:00:07]} 21. Bb2 {[%emt 0:00:02]} Rd8 {[%emt 0:00:07][%cal Od4f3] [#] White must now prevent ...Nf3+!} 22. Qa5 {[%emt 0:00:05] Weighted Error Value: White=0.37/Black=0.10 (very precise)} 0-1